bitfinex/quotes_ETHUSD_20251009
["timestamp","ask_amount","ask_price","bid_price","bid_amount"]
[1760000810197,2.76031715,4350.8,4350.3,1.63850074]
[1760000810517,2.29849356,4350.7,4350.3,1.63850074]
[1760000811027,0.4618505,4350.8,4350.4,0.02298639]
[1760000811241,0.02167863,4351.1,4350.3,1.63850074]
[1760000811388,2.29853874,4350.6,4350.3,1.63850074]
[1760000811593,2.29857121,4350.6,4350.2,8.18650074]
[1760000811788,2.29857121,4350.6,4350.2,6.548]
[1760000811990,0.4501,4351.7,4350.3,0.07298692]
[1760000812299,0.4501,4351.4,4350.3,0.07298692]
[1760000812498,0.02167863,4351.3,4350.3,0.05]
[1760000812804,2.29848123,4350.7,4350.3,0.05]
[1760000813015,2.29852293,4350.7,4350.3,0.05]
[1760000813324,2.74862293,4350.7,4350.3,0.05]
[1760000813636,2.29847759,4350.8,4350.3,0.05]
[1760000814700,0.1144,4350.9,4350.3,0.05]
[1760000814701,2.29848423,4350.7,4350.3,0.05]
[1760000814916,0.47329052,4350.7,4350.3,0.05]
[1760000815107,0.47177863,4350.6,4350.3,6.595]
[1760000815428,2.4130392,4350.4,4350.3,6.595]
[1760000815623,2.88481783,4350.4,4350.3,0.05]
[1760000815790,2.77041783,4350.4,4350.3,0.05]
[1760000817014,4.69041783,4350.4,4350.3,1e-08]
[1760000817322,5.36763962,4350.4,4350.3,1e-08]
[1760000817524,11.91163962,4350.4,4350.3,1e-08]
[1760000818296,12.54523962,4350.4,4350.3,1e-08]
[1760000820224,6.00123962,4350.4,4350.3,1e-08]
[1760000820414,5.36763962,4350.4,4350.3,1e-08]
[1760000821125,2.391,4351.4,4350.3,1e-08]
[1760000821302,2.7487392,4350.4,4350.3,0.00100001]
[1760000821728,2.77041783,4350.4,4350.3,0.00100001]
[1760000821926,9.31441783,4350.4,4350.3,0.00100001]
[1760000822101,9.9263392,4350.4,4350.3,0.00100001]
[1760000822304,13.49992982,4350.4,4350.3,0.00100001]
[1760000824413,15.92792982,4350.4,4350.3,0.00100001]
[1760000826604,16.41545489,4350.4,4350.3,0.00100001]
[1760000830131,9.87145489,4350.4,4350.3,0.00100001]
[1760000830310,28.37045489,4350.4,4350.3,0.00100001]
[1760000831316,27.88292982,4350.4,4350.3,0.00100001]
[1760000832711,27.88212982,4350.4,4350.3,0.00100001]
[1760000833112,27.88212982,4350.4,4348.3,0.001]
[1760000833113,2.93329644,4348.4,4348.3,0.001]
[1760000833331,13.80597507,4348.4,4348.3,0.001]
[1760000833640,13.78429644,4348.4,4348.3,0.001]
[1760000834834,14.21999644,4348.4,4348.3,0.001]
[1760000835557,2.30023849,4347.4,4345.8,2.392]
[1760000835708,2.30095399,4346.1,4345.8,2.392]
[1760000835932,2.30052317,4346.9,4345.8,2.392]
[1760000835933,1.92,4346.9,4345.9,0.02301019]
[1760000836134,0.4357,4347.2,4345.9,0.02301019]
[1760000836135,0.02167863,4346.8,4345.9,0.02301019]
[1760000836347,2.30055548,4346.8,4346.0,0.4362]
[1760000836559,2.30058111,4346.8,4346.1,0.15440913]
[1760000837363,2.30063126,4346.7,4346.1,0.15440913]
[1760000838033,2.30063126,4346.7,4346.5,2.0]
[1760000838233,2.30064878,4346.6,4346.5,2.0]
[1760000838428,0.02167863,4347.1,4345.6,0.90739174]
[1760000838659,0.02167863,4347.1,4345.7,5.321]
[1760000838660,2.30072886,4346.5,4345.7,5.321]
[1760000838862,2.30075479,4346.4,4345.7,5.321]
[1760000839058,2.3007172,4346.5,4345.7,5.321]
[1760000839269,2.34419747,4347.0,4345.6,0.4362]
[1760000839270,1.94167863,4346.9,4345.6,0.4362]
[1760000839570,1.94167863,4346.9,4344.4,1.92]
[1760000839571,0.02167863,4346.8,4345.3,2.75]
[1760000839860,2.30070171,4346.5,4345.3,2.75]
[1760000840059,0.45737863,4346.4,4345.3,2.75]
[1760000840436,0.02167863,4346.4,4345.4,0.02301284]
[1760000840769,2.30080758,4346.3,4345.4,0.02301284]
[1760000840968,2.30096006,4346.1,4345.4,0.02301284]
[1760000841132,0.02167863,4346.2,4345.4,0.02301284]
[1760000841337,2.30106809,4345.9,4345.3,2.75]
[1760000841651,2.32275858,4345.8,4345.3,2.75]
[1760000842185,2.30080758,4346.3,4345.4,0.02301284]
[1760000842346,2.3225395,4346.2,4345.4,0.02301284]
[1760000842671,2.3010281,4345.9,4345.4,0.02301284]
[1760000842977,2.30097836,4346.0,4345.4,0.02301284]
[1760000843148,2.30096078,4346.1,4345.4,0.02301284]
[1760000843342,2.300985,4346.0,4345.4,0.02301284]
[1760000844293,0.02167863,4346.4,4345.4,0.55116427]
[1760000844484,2.30095683,4346.1,4345.4,0.55116427]
[1760000844802,1.92,4346.5,4345.3,2.751]
[1760000844803,2.30096877,4346.0,4345.3,2.751]
[1760000844966,2.41555764,4345.7,4345.3,0.001]
[1760000845170,0.1144,4345.7,4345.3,6.016]
[1760000845406,0.02167863,4346.4,4345.4,0.4362]
[1760000845603,0.1144,4346.0,4345.4,0.4362]
[1760000847610,2.41538142,4346.0,4345.4,0.4362]
[1760000847910,0.1144,4346.0,4345.4,0.4362]
[1760000848075,0.1144,4346.0,4345.3,6.1304]
[1760000848267,2.41541172,4346.0,4345.3,6.1304]
[1760000848472,0.1144,4346.0,4345.3,6.1304]
[1760000848667,0.1144,4346.0,4345.4,2.30128411]
[1760000848873,0.1144,4346.0,4345.5,2.32424319]
[1760000849107,0.1144,4346.0,4345.5,0.02301231]
[1760000849306,1.92,4346.8,4345.7,2.30112525]
[1760000849307,0.02167863,4346.8,4345.7,2.30112525]
[1760000849474,0.1144,4346.4,4345.8,0.02301072]
[1760000849798,0.1144,4346.4,4345.8,0.51758796]
[1760000849998,0.1144,4346.4,4345.7,0.1144]
[1760000850203,0.1144,4346.4,4345.7,2.41548425]
[1760000850504,2.30080758,4346.3,4345.7,0.1144]
[1760000850810,2.30101935,4345.9,4345.8,6.541]
[1760000851104,0.13607863,4346.0,4345.5,6.54]
[1760000851315,2.43708173,4346.0,4345.5,6.54]
[1760000851616,2.30106831,4345.9,4345.5,6.54]
[1760000852183,2.41538365,4346.0,4345.5,6.54]
[1760000852374,0.02167863,4345.9,4345.5,6.54]
[1760000853000,0.1144,4346.0,4345.6,0.02301178]
[1760000853178,0.1144,4346.0,4345.9,2.0]
[1760000854297,2.30065663,4346.6,4345.9,2.20230118]
[1760000854486,2.30065663,4346.6,4346.0,0.02300966]
[1760000854487,0.1144,4346.2,4346.0,0.02300966]
[1760000855010,0.1144,4346.2,4346.1,6.539]
[1760000855194,2.30054882,4346.8,4346.1,7.1066]
[1760000855397,0.02167863,4346.9,4346.2,0.0230086]
[1760000855605,0.1144,4346.5,4346.2,0.95619958]
[1760000855799,0.1144,4346.8,4346.3,0.4362]
[1760000855977,0.1144,4346.8,4346.2,0.95619958]
[1760000855978,0.1144,4346.8,4346.2,0.93319098]
[1760000856188,0.1144,4346.8,4346.3,0.02300807]
[1760000856514,0.1144,4346.8,4346.3,0.45920807]
[1760000856822,0.02167863,4347.7,4346.4,0.4362]
[1760000857032,2.29993853,4348.0,4347.0,2.30042477]
[1760000857309,0.45737863,4348.4,4346.4,0.4362]
[1760000857310,2.2998051,4348.2,4347.2,2.30030258]
[1760000857512,0.02167863,4348.1,4347.3,6.5573934]
[1760000857706,2.32156495,4348.1,4347.3,6.538]
[1760000858087,2.29991459,4348.0,4347.3,6.538]
[1760000858290,0.02167863,4347.9,4347.3,6.538]
[1760000858617,2.30006373,4347.8,4347.3,6.538]
[1760000858823,2.29996019,4348.0,4347.3,6.538]
[1760000859119,2.2999865,4347.9,4347.3,6.538]
[1760000859330,0.02167863,4348.0,4347.3,6.538]
[1760000859631,2.30022542,4347.4,4347.3,6.538]
[1760000859931,0.4357,4347.4,4346.9,6.537]
[1760000860078,2.30042367,4347.1,4346.9,6.537]
[1760000860278,2.30027833,4347.3,4346.9,6.537]
[1760000860279,2.30043708,4347.0,4346.9,6.537]
[1760000860480,2.32202454,4347.2,4346.3,1.04780164]
[1760000860725,2.32202454,4347.2,4346.4,8.93]
[1760000860893,2.30049667,4346.9,4346.4,8.93]
[1760000861425,0.02167863,4347.1,4346.4,8.93]
[1760000861586,0.4357,4347.6,4346.5,0.02300701]
[1760000861788,2.30023997,4347.4,4346.5,0.02300701]
[1760000862012,2.32197782,4347.3,4346.5,0.02300701]
[1760000862317,2.30035602,4347.2,4346.6,8.931]
[1760000862623,2.2996466,4348.5,4346.7,0.02300595]
[1760000862825,0.45737863,4348.4,4347.0,2.30038597]
[1760000862986,0.45737863,4348.4,4347.0,0.4362]
[1760000863191,2.3000211,4347.8,4347.0,0.4362]
[1760000863492,2.30043548,4347.1,4346.7,2.393]
[1760000863691,2.30043548,4347.1,4346.8,5.698]
[1760000864008,0.02167863,4347.3,4346.8,5.698]
[1760000864210,2.3020252,4347.8,4346.8,5.698]
[1760000864211,0.02167863,4347.7,4346.8,5.698]
[1760000864407,2.3003232,4347.3,4346.8,5.698]
[1760000864600,0.4527,4347.8,4346.8,5.698]
[1760000864601,0.02167863,4347.2,4346.8,5.698]
[1760000864801,0.4507,4347.1,4346.9,6.54]
[1760000865004,2.30047442,4347.0,4346.9,6.54]
[1760000865612,2.32207115,4347.1,4346.9,6.54]
[1760000866128,0.002,4347.8,4347.0,0.02300437]
[1760000866285,2.30205926,4347.8,4347.0,0.02300437]
[1760000866487,0.02367863,4347.8,4347.0,0.02300437]
[1760000866682,0.1144,4347.4,4347.0,0.02300437]
[1760000867985,2.30033124,4347.2,4346.6,0.1144]
[1760000868187,2.30037905,4347.2,4346.8,2.392]
[1760000868412,0.47237863,4347.1,4345.9,2.65700118]
[1760000868613,0.4507,4347.1,4345.9,2.0]
[1760000868814,0.1144,4346.3,4346.1,4.261]
[1760000868985,0.1144,4346.3,4345.9,2.0]
[1760000868986,2.30090857,4346.2,4345.9,2.0]
[1760000869182,2.3009664,4346.0,4345.9,2.0]
[1760000869400,2.30090363,4346.2,4345.9,4.278]
[1760000869602,0.1144,4346.0,4345.9,4.278]
[1760000871119,2.4153664,4346.0,4345.9,2.0]
[1760000871291,0.1144,4346.0,4345.9,8.539]
[1760000871486,2.4153664,4346.0,4345.9,8.539]
[1760000871811,2.8660664,4346.0,4345.9,2.0]
[1760000872121,2.88774503,4346.0,4345.6,6.539]
[1760000872337,2.30110584,4345.8,4345.6,6.539]
[1760000872626,2.41550584,4345.8,4345.6,6.539]
[1760000872790,2.30112525,4345.7,4345.6,6.539]
[1760000872995,2.415484,4345.8,4345.6,6.539]
[1760000873299,0.1144,4345.8,4345.7,6.539]
[1760000874219,2.30116757,4345.7,4345.6,6.538]
[1760000874422,0.1144,4345.8,4345.6,6.538]
[1760000874623,2.30122272,4345.6,4345.3,0.001]
[1760000874922,2.30128411,4345.4,4345.3,0.001]
[1760000875096,2.32296274,4345.4,4345.3,0.001]
[1760000875428,2.8860868,4345.4,4345.3,0.001]
[1760000875723,5.4396868,4345.4,4345.3,0.001]
[1760000875928,5.41800817,4345.4,4345.3,0.001]
[1760000876121,6.76325652,4345.4,4345.3,0.001]
[1760000878024,6.01723246,4345.4,4345.3,0.001]
[1760000878321,6.65003246,4345.4,4345.3,0.001]
[1760000878826,6.76440495,4345.4,4345.3,0.001]
[1760000880087,6.65003246,4345.4,4345.3,0.001]
[1760000882325,2.75118411,4345.4,4345.3,0.001]
[1760000882829,6.77677863,4345.9,4345.3,0.001]
[1760000882830,0.02167863,4345.5,4345.3,0.001]
[1760000883013,0.02167863,4345.9,4345.3,0.001]
[1760000883338,2.32265959,4346.0,4345.3,3.582]
[1760000883505,0.02167863,4346.0,4345.7,2.0]
[1760000883706,2.30107229,4345.8,4345.7,2.0]
[1760000883940,2.32275092,4345.8,4345.7,2.0]
[1760000884139,3.23366077,4345.8,4345.3,0.001]
[1760000884442,2.30128411,4345.4,4345.3,0.001]
[1760000884607,4.22128411,4345.4,4345.3,0.001]
[1760000884942,1.92,4345.5,4345.3,0.001]
[1760000885245,2.30117454,4345.7,4345.3,0.001]
[1760000885440,2.30119125,4345.6,4345.3,0.001]
[1760000885642,0.1144,4345.5,4345.3,0.001]
[1760000885843,0.1144,4345.5,4345.4,0.9678]
[1760000886139,0.002,4346.5,4345.4,0.9678]
[1760000886353,0.1144,4345.8,4345.4,0.9678]
[1760000886534,0.002,4346.5,4345.5,0.4547]
[1760000886843,0.1144,4346.0,4345.5,0.4547]
[1760000887340,0.1144,4346.0,4345.6,0.79315207]
[1760000887845,0.1144,4346.0,4345.6,0.33845207]
[1760000888043,2.41538034,4346.0,4345.4,0.5131]
[1760000888223,2.4154168,4346.0,4345.4,0.5131]
[1760000888428,2.41541184,4346.0,4345.8,2.0]
[1760000888969,0.1144,4346.0,4345.8,2.0]
[1760000889139,0.4527,4346.5,4345.8,2.0]
[1760000889140,0.002,4346.5,4345.9,11.89471935]
[1760000889455,0.002,4346.5,4346.0,0.4547]
[1760000889632,0.002,4346.5,4346.4,2.54655464]
[1760000889845,0.002,4346.5,4346.4,2.56956218]
[1760000890033,0.002,4346.5,4346.4,3.24860132]
[1760000890255,0.002,4346.5,4346.4,3.70330132]
[1760000890559,0.002,4346.5,4346.4,0.94784668]
[1760000890744,0.002,4346.5,4346.2,4.581]
[1760000891055,2.30274572,4346.5,4346.2,4.581]
[1760000891228,0.47237863,4346.4,4346.2,6.546]
[1760000891562,0.4507,4346.4,4345.4,0.5131]
[1760000891735,0.4507,4346.4,4345.9,4.536]
[1760000891736,2.30086114,4346.2,4345.9,4.536]
[1760000891924,0.002,4346.5,4346.0,0.02300966]
[1760000892128,0.002,4346.5,4346.0,5.731]
[1760000892348,0.002,4346.5,4346.1,0.02300913]
[1760000892548,0.002,4346.5,4346.1,0.60910913]
[1760000893231,0.002,4346.5,4346.2,0.4517]
[1760000893427,0.002,4346.5,4346.4,2.30075464]
[1760000893838,0.002,4346.5,4346.4,2.75245464]
[1760000894157,0.002,4346.5,4346.4,3.27322646]
[1760000894724,0.002,4346.5,4346.4,0.97247182]
[1760000894929,0.002,4346.5,4346.4,0.47470753]
[1760000896062,0.002,4346.5,4346.4,0.4517]
[1760000896263,0.002,4346.5,4346.4,2.75245464]
[1760000896762,0.002,4346.5,4346.1,0.1314]
[1760000896962,0.002,4346.5,4346.0,2.393]
[1760000896963,0.4589,4346.5,4346.0,2.393]
[1760000897282,0.4569,4346.4,4345.8,2.0]
[1760000897461,0.4569,4346.4,4345.8,3.907]
[1760000897838,0.02167863,4346.3,4345.8,2.0]
[1760000898040,2.30101606,4346.0,4345.8,2.0]
[1760000898239,0.02167863,4345.9,4345.8,2.0]
[1760000898452,1.92,4346.2,4345.8,2.0]
[1760000898651,0.4569,4346.4,4345.8,2.0]
[1760000898652,0.02167863,4346.3,4345.8,2.0]
[1760000898847,2.30086291,4346.2,4345.8,2.0]
[1760000899370,0.002,4346.5,4345.9,0.02301019]
[1760000899670,0.002,4346.5,4345.8,3.20780123]
[1760000899876,2.30271667,4346.5,4345.9,6.542]
[1760000900087,2.32243639,4346.4,4345.9,8.935]
[1760000900382,2.30271158,4346.5,4345.9,8.935]
[1760000900537,2.32439021,4346.5,4345.9,8.935]
[1760000900739,0.1144,4346.3,4345.9,8.935]
[1760000901354,0.1144,4346.3,4346.0,0.02300966]
[1760000901951,0.1144,4346.3,4346.1,6.542]
[1760000902153,0.1144,4346.3,4346.1,6.541]
[1760000902369,0.4569,4346.2,4345.8,2.0]
[1760000902674,0.1144,4346.0,4345.8,8.541]
[1760000903182,0.1144,4346.0,4345.8,2.0]
[1760000903469,0.02167863,4346.1,4345.8,2.0]
[1760000903685,0.02167863,4346.2,4345.8,2.0]
[1760000903884,0.4569,4346.1,4345.8,2.0]
[1760000904178,0.02367863,4346.5,4345.8,1.990075]
[1760000904179,2.30101935,4345.9,4345.8,1.990075]
[1760000904381,2.75791935,4345.9,4345.8,1.990075]
[1760000904588,5.18380792,4345.9,4345.8,1.990075]
[1760000906182,5.18380792,4345.9,4345.3,0.001]
[1760000906183,1.92,4345.8,4345.3,0.001]
[1760000906483,2.30128411,4345.4,4345.3,0.001]
[1760000907383,2.75818411,4345.4,4345.3,0.001]
[1760000908184,2.75818411,4345.4,4345.3,2.001]
[1760000909558,3.2662882,4345.4,4345.3,2.001]
[1760000910990,2.75818411,4345.4,4345.3,2.001]
[1760000911556,5.31178411,4345.4,4345.3,2.001]
[1760000911757,5.31178411,4345.4,4345.3,0.001]
[1760000913798,5.31178411,4345.4,4344.8,1e-08]
[1760000913799,7.27793707,4345.3,4344.8,1e-08]
[1760000913997,14.45076789,4344.9,4344.8,1e-08]
[1760000914215,25.06216015,4344.9,4344.8,1e-08]
[1760000914368,25.51906015,4344.9,4344.8,1e-08]
[1760000915383,27.94206015,4344.9,4344.8,1e-08]
[1760000916164,29.37206015,4344.9,4344.8,1e-08]
[1760000916956,27.94206015,4344.9,4344.8,1e-08]
[1760000917387,28.40766707,4344.9,4344.8,1e-08]
[1760000918903,28.40766707,4344.9,4344.3,0.001]
[1760000918904,7.27836084,4344.5,4344.3,0.001]
[1760000919113,14.46216373,4344.5,4344.3,0.001]
[1760000919309,5.95506373,4344.5,4344.3,0.001]
[1760000919479,24.46806373,4344.5,4344.3,0.001]
[1760000919873,24.46806373,4344.5,4341.8,0.001]
[1760000919874,2.30284007,4342.5,4341.8,0.001]
[1760000920099,0.1144,4342.3,4341.8,0.02403192]
[1760000920300,0.1144,4342.3,4342.1,2.30298334]
[1760000920478,0.1144,4342.7,4342.2,0.42929813]
[1760000920885,0.4569,4342.6,4341.8,0.001]
[1760000921105,0.1144,4342.4,4341.8,0.001]
[1760000921305,0.1144,4342.4,4341.9,2.30313917]
[1760000921604,0.1144,4342.4,4342.0,0.02290329]
[1760000921776,0.1144,4342.4,4342.0,0.47460329]
[1760000921977,0.1144,4342.4,4342.1,0.2778737]
[1760000922178,0.1144,4342.4,4342.2,0.02290223]
[1760000922680,2.30278319,4342.6,4342.1,0.02303033]
[1760000922876,0.1144,4342.3,4342.1,2.30303156]
[1760000923205,0.1144,4342.7,4342.2,0.1308]
[1760000923408,0.1144,4342.7,4342.0,0.1144]
[1760000923409,2.41711819,4342.7,4342.0,0.1144]
[1760000923609,2.30282095,4342.5,4342.1,6.542]
[1760000923908,1.92,4343.1,4341.8,0.001]
[1760000923909,0.1144,4342.2,4341.8,0.001]
[1760000924096,2.3030392,4342.1,4341.8,0.001]
[1760000924302,0.02087863,4342.0,4341.8,0.001]
[1760000924618,2.41753917,4341.9,4341.8,0.001]
[1760000925279,2.3240178,4341.9,4341.8,0.001]
[1760000925484,0.02087863,4341.9,4341.8,0.001]
[1760000925685,1.92,4343.0,4341.8,0.001]
[1760000925686,2.30255946,4343.0,4341.8,0.001]
[1760000925882,2.32349015,4342.9,4341.9,2.30313909]
[1760000926110,0.02087863,4342.9,4342.0,0.25344476]
[1760000926316,2.30274869,4342.7,4342.0,0.23041391]
[1760000926515,0.4278,4343.1,4342.1,0.1308]
[1760000926819,0.4278,4343.1,4342.2,0.0230298]
[1760000926820,1.92,4343.0,4342.2,0.0230298]
[1760000927023,4.22265723,4342.9,4342.2,0.0230298]
[1760000927188,2.30265723,4342.9,4342.3,0.45170573]
[1760000927389,2.30266569,4342.8,4342.4,0.02302873]
[1760000927602,2.30272452,4342.7,4342.4,0.02302873]
[1760000927895,0.02087863,4342.9,4342.3,0.45170573]
[1760000928090,1.92,4342.9,4342.1,2.587]
[1760000928406,2.302836,4342.5,4342.1,2.587]
[1760000928719,2.30280704,4342.6,4342.1,2.587]
[1760000928911,2.30282657,4342.5,4342.1,2.587]
[1760000929418,2.30260885,4342.9,4342.1,2.587]
[1760000929627,2.3027563,4342.7,4342.1,2.587]
[1760000929802,2.32355902,4342.8,4342.2,0.48901225]
[1760000930123,2.30278177,4342.6,4342.2,0.48901225]
[1760000930325,2.3026487,4342.9,4342.2,0.48901225]
[1760000930498,0.02087863,4342.8,4342.2,0.48901225]
[1760000930702,2.30277124,4342.6,4342.2,0.48901225]
[1760000931119,4.22262921,4342.9,4342.2,0.48901225]
[1760000931320,2.32356495,4342.8,4342.2,0.48901225]
[1760000931519,2.32356495,4342.8,4342.1,5.02079135]
[1760000931520,0.02087863,4342.8,4342.3,0.55098036]
[1760000931723,2.30251395,4343.1,4342.4,0.4525]
[1760000931922,1.92,4343.2,4342.5,2.0]
[1760000932126,0.4278,4343.5,4342.5,2.0]
[1760000932127,2.30226369,4343.6,4342.6,2.32579482]
[1760000932440,0.02087863,4343.8,4342.6,2.32579482]
[1760000932604,2.30239842,4343.3,4342.6,2.32579482]
[1760000932928,0.4278,4343.6,4342.7,0.47782948]
[1760000933123,2.30260594,4343.0,4342.5,2.0]
[1760000933327,2.32321842,4343.5,4342.5,2.0]
[1760000933631,0.02087863,4343.5,4342.5,2.0]
[1760000933835,0.02087863,4343.5,4342.6,2.32579559]
[1760000934000,2.30234378,4343.4,4342.6,2.32579559]
[1760000934207,2.30243353,4343.3,4342.6,3.03390761]
[1760000934414,0.4278,4343.9,4342.6,0.73114402]
[1760000934732,2.30253165,4343.1,4342.6,0.02302767]
[1760000934905,2.30246649,4343.2,4342.6,0.02302767]
[1760000935106,2.30262857,4342.9,4342.5,2.0]
[1760000935351,0.02087863,4343.4,4342.5,2.1144]
[1760000935352,0.1144,4343.2,4342.5,2.1144]
[1760000935917,2.30254279,4343.1,4342.5,2.1144]
[1760000936240,2.30256407,4343.0,4342.5,2.60137701]
[1760000936539,2.41716792,4342.6,4342.5,2.0]
[1760000936739,0.1144,4342.6,4342.5,2.0]
[1760000937383,0.1144,4343.2,4342.5,2.5899282]
[1760000937736,9.59561895,4344.4,4342.5,2.5899282]
[1760000937737,0.002,4343.5,4342.6,0.4525]
[1760000938040,0.002,4343.5,4343.3,2.30235889]
[1760000938240,0.002,4343.5,4343.4,10.06201967]
[1760000938442,0.002,4343.5,4343.4,10.51451967]
[1760000939001,0.002,4343.5,4343.4,8.21217589]
[1760000939207,0.002,4343.5,4343.4,10.51451967]
[1760000941739,0.002,4343.5,4343.4,3.63011967]
[1760000941913,0.002,4343.5,4343.4,2.99651967]
[1760000942120,0.002,4343.5,4343.4,21.50751967]
[1760000942320,0.002,4343.5,4343.4,2.99651967]
[1760000942765,0.002,4343.5,4343.4,21.50751967]
[1760000944733,0.002,4343.5,4343.4,21.59966677]
[1760000944958,0.002,4343.5,4343.4,9.62666677]
[1760000945264,0.002,4343.5,4343.4,11.92851967]
[1760000947048,0.002,4343.5,4343.4,0.69417589]
[1760000947253,0.002,4343.5,4343.4,8.931]
[1760000947458,0.0012,4343.5,4343.4,11.23334378]
[1760000947645,0.0012,4343.5,4343.4,11.68584378]
[1760000948120,0.0012,4343.5,4343.4,11.80024378]
[1760000948320,0.0012,4343.5,4343.4,13.21050873]
[1760000950135,0.0012,4343.5,4343.4,10.90816495]
[1760000950360,0.0012,4343.5,4343.4,13.21050873]
[1760000950675,0.0012,4343.5,4343.4,0.1144]
[1760000950971,0.0012,4343.5,4343.4,8.931]
[1760000951551,0.0012,4343.5,4343.4,9.3835]
[1760000951946,0.0012,4343.5,4342.5,2.0]
[1760000951947,0.0012,4343.5,4342.6,2.30275226]
[1760000952155,0.0012,4343.5,4342.8,0.4525]
[1760000952332,0.0012,4343.5,4342.9,1.91907608]
[1760000952538,0.0012,4343.5,4343.0,6.537]
[1760000952737,0.0012,4343.5,4343.4,2.30234378]
[1760000952960,0.0012,4343.5,4343.4,6.56002343]
[1760000953122,0.0012,4343.5,4343.4,6.9711]
[1760000953325,0.0012,4343.5,4343.4,9.27344378]
[1760000953758,0.0012,4343.5,4343.4,6.9711]
[1760000953957,0.0012,4343.5,4343.4,9.27344378]
[1760000954137,0.0012,4343.5,4343.4,10.4310297]
[1760000954341,0.0012,4343.5,4343.4,8.12868592]
[1760000954745,0.0012,4343.5,4343.4,6.9711]
[1760000954950,0.0012,4343.5,4343.4,6.537]
[1760000955461,0.0012,4343.5,4343.4,9.27344378]
[1760000955825,0.0012,4343.5,4343.4,6.9711]
[1760000957087,0.0012,4343.5,4343.4,9.27344378]
[1760000957254,0.0012,4343.5,4343.4,10.43113264]
[1760000957886,0.0012,4343.5,4343.4,10.52327996]
[1760000960789,0.0012,4343.5,4343.4,10.63767996]
[1760000962199,0.0012,4343.5,4343.4,10.54553264]
[1760000962558,0.0012,4343.5,4343.4,4.00853264]
[1760000962755,0.0012,4343.5,4343.4,9.14784378]
[1760000966408,0.0012,4343.5,4343.4,2.85084378]
[1760000966623,0.0012,4343.5,4343.4,11.78084378]
[1760000967989,0.0012,4343.5,4343.4,0.1144]
[1760000968177,0.0012,4343.5,4343.4,3.3484]
[1760000969730,0.0012,4343.5,4343.4,6.10786721]
[1760000970008,0.0012,4343.5,4343.4,6.08484378]
[1760000970379,0.0004,4343.5,4343.4,6.08484378]
[1760000973022,0.0004,4343.5,4343.4,9.0444]
[1760000974392,2.74119127,4343.5,4343.4,8.93]
[1760000974597,2.30236235,4343.4,4343.1,0.001]
[1760000974785,2.30236235,4343.4,4343.2,5.822]
[1760000974982,2.30236235,4343.4,4343.1,0.001]
[1760000975298,0.94532627,4343.5,4343.1,0.001]
[1760000975299,0.50682627,4343.5,4343.1,0.001]
[1760000975606,2.74084378,4343.4,4343.3,0.001]
[1760000975805,2.74084378,4343.4,4343.3,3.967]
[1760000976903,2.74084378,4343.4,4343.3,0.001]
[1760000976904,4.66084378,4343.4,4343.3,0.001]
[1760000977615,5.29444378,4343.4,4343.3,0.001]
[1760000979033,11.83044378,4343.4,4343.3,0.001]
[1760000979203,14.08221423,4343.4,4343.3,0.001]
[1760000979533,16.50521423,4343.4,4343.3,0.001]
[1760000979936,16.50521423,4343.4,4343.1,0.001]
[1760000979937,5.3590498,4343.2,4343.1,0.001]
[1760000980135,15.04542517,4342.7,4342.6,0.001]
[1760000980436,2.93652702,4342.3,4342.2,0.001]
[1760000980604,5.42641835,4342.3,4342.2,0.001]
[1760000980804,5.84403972,4342.3,4342.2,0.001]
[1760000981231,5.96132049,4342.3,4342.2,0.001]
[1760000981620,8.38432049,4342.3,4342.2,0.001]
[1760000982737,5.96132049,4342.3,4342.2,0.001]
[1760000983038,4.22292702,4342.3,4342.2,0.001]
[1760000983330,5.34520565,4342.3,4342.2,0.001]
[1760000983504,5.32432702,4342.3,4342.2,0.001]
[1760000983703,4.22292702,4342.3,4342.2,0.001]
[1760000983933,4.71160565,4342.3,4342.2,0.001]
[1760000984137,5.3921729,4342.3,4342.2,0.001]
[1760000985642,3.08954588,4342.3,4342.2,0.001]
[1760000985842,4.69102702,4342.3,4342.2,0.001]
[1760000987065,2.30256789,4343.0,4342.2,0.001]
[1760000987066,0.1144,4342.4,4342.2,0.001]
[1760000988724,2.77102702,4342.3,4342.2,0.001]
[1760000988929,2.79190565,4342.3,4342.2,0.001]
[1760000989125,2.32380565,4342.3,4342.2,0.001]
[1760000989520,2.79190565,4342.3,4342.2,0.001]
[1760000989737,2.77102702,4342.3,4342.2,0.001]
[1760000989962,2.30292702,4342.3,4342.2,0.001]
[1760000990440,2.43816018,4342.4,4342.2,0.001]
[1760000990623,2.30292702,4342.3,4342.2,0.001]
[1760000991222,3.2919412,4342.3,4342.2,0.001]
[1760000991823,5.8455412,4342.3,4342.2,0.001]
[1760000993874,12.3845412,4342.3,4342.2,0.001]
[1760000994482,12.3837412,4342.3,4342.2,0.001]
[1760000996027,5.2111412,4342.3,4342.2,0.001]
[1760000996235,4.69022702,4342.3,4342.2,0.001]
[1760000996519,4.22292702,4342.3,4342.2,0.001]
[1760000996721,1.92,4342.3,4342.2,0.001]
[1760000996902,0.1144,4342.4,4342.2,0.001]
[1760000997378,2.30292702,4342.3,4342.2,0.001]
[1760000999102,2.77102702,4342.3,4342.2,0.001]
[1760000999609,2.79190565,4342.3,4342.2,0.001]
[1760001000319,2.30292702,4342.3,4342.2,0.001]
[1760001000610,2.32380565,4342.3,4342.2,0.001]
[1760001000917,2.79190565,4342.3,4342.2,0.001]
[1760001001448,0.6336,4342.1,4341.8,0.001]
[1760001001597,0.6336,4341.7,4340.9,0.001]
[1760001001793,4.97135137,4341.5,4340.9,0.001]
[1760001002009,4.87788306,4341.4,4340.9,0.001]